bitfinex-derivatives/quotes_BTCF0:USTF0_20260315
["timestamp","ask_amount","ask_price","bid_price","bid_amount"]
[1773561137795,0.041982,71448.0,71440.0,0.08815087]
[1773561137996,0.041982,71448.0,71441.0,0.0014]
[1773561138398,0.041982,71448.0,71442.0,0.0014]
[1773561140798,0.041982,71448.0,71440.0,0.08815087]
[1773561140999,0.041984,71445.0,71440.0,0.08815087]
[1773561141304,0.041984,71445.0,71441.0,0.0014]
[1773561141497,0.041984,71445.0,71437.0,0.30792]
[1773561141702,0.041984,71445.0,71438.0,0.0014]
[1773561142704,0.041984,71445.0,71439.0,0.0014]
[1773561143095,0.041984,71445.0,71437.0,0.30792]
[1773561143296,0.041984,71445.0,71438.0,0.0014]
[1773561143796,0.041985,71442.0,71437.0,0.30792]
[1773561143991,0.041985,71442.0,71438.0,0.0014]
[1773561145603,0.041984,71444.0,71439.0,0.0014]
[1773561146104,0.011,71442.0,71439.0,0.0014]
[1773561152004,0.011,71442.0,71432.0,0.31473709]
[1773561152303,0.011,71442.0,71433.0,0.0014]
[1773561161410,0.011,71442.0,71433.0,0.30792]
[1773561161603,0.011,71442.0,71434.0,0.0014]
[1773561164013,0.011,71442.0,71433.0,0.30792]
[1773561164218,0.011,71442.0,71435.0,0.0014]
[1773561164813,0.00959996,71442.0,71435.0,0.0014]
[1773561168213,0.00959996,71442.0,71432.0,0.31473709]
[1773561168419,0.00959996,71442.0,71433.0,0.30932]
[1773561171219,0.00959996,71442.0,71433.0,0.62405709]
[1773561173920,0.0014,71469.0,71433.0,0.62405709]
[1773561173921,0.041973,71464.0,71442.0,0.02547116]
[1773561174117,0.19429962,71463.0,71450.0,0.08818892]
[1773561174317,0.02525515,71464.0,71451.0,0.0014]
[1773561174516,0.08818892,71480.0,71452.0,0.0014]
[1773561174517,0.02525515,71462.0,71452.0,0.0014]
[1773561174926,0.02525515,71462.0,71450.0,0.08818892]
[1773561175217,0.041976,71459.0,71451.0,0.0014]
[1773561175424,0.041976,71459.0,71450.0,0.08818892]
[1773561175616,0.041976,71459.0,71451.0,0.0014]
[1773561176011,0.041976,71459.0,71452.0,0.0014]
[1773561178112,0.041976,71459.0,71453.0,0.0014]
[1773561178317,0.02525515,71462.0,71453.0,0.0014]
[1773561180123,0.041975,71461.0,71453.0,0.0014]
[1773561180529,0.06723015,71461.0,71456.0,0.011]
[1773561181227,0.011,71459.0,71456.0,0.011]
[1773561181927,0.011,71459.0,71453.0,0.0014]
[1773561182116,0.041975,71460.0,71453.0,0.0014]
[1773561182517,0.02525515,71461.0,71453.0,0.0014]
[1773561182826,0.02525515,71457.0,71454.0,0.0014]
[1773561183033,0.02525515,71457.0,71455.0,0.0014]
[1773561183219,0.02525515,71457.0,71456.0,0.0014]
[1773561184120,0.011,71457.0,71456.0,0.0014]
[1773561190226,0.034976,71458.0,71456.0,0.0014]
[1773561190426,0.034976,71458.0,71457.0,0.0014]
[1773561191822,0.034976,71458.0,71447.0,0.08818892]
[1773561192026,0.034976,71458.0,71451.0,0.0014]
[1773561193933,0.041975,71460.0,71451.0,0.0014]
[1773561194135,0.02525515,71475.0,71448.0,0.02687116]
[1773561194331,0.041975,71461.0,71448.0,0.043381]
[1773561194532,0.041975,71460.0,71453.0,0.011]
[1773561194737,0.041975,71460.0,71455.0,0.0014]
[1773561194931,0.041975,71460.0,71456.0,0.0014]
[1773561195132,0.041976,71459.0,71457.0,0.0014]
[1773561195328,0.041976,71459.0,71458.0,0.0014]
[1773561196539,0.041976,71458.0,71453.0,0.011]
[1773561196731,0.02525515,71474.0,71454.0,0.0014]
[1773561197941,0.041976,71458.0,71454.0,0.0014]
[1773561201434,0.041971,71467.0,71455.0,0.02547116]
[1773561201637,0.02748284,71468.0,71459.0,0.14207814]
[1773561201942,0.02748284,71468.0,71459.0,0.08651136]
[1773561202142,0.02748284,71468.0,71456.0,0.0014]
[1773561202337,0.011,71457.0,71456.0,0.0014]
[1773561202539,0.02748284,71468.0,71456.0,0.0014]
[1773561202845,0.02848284,71468.0,71456.0,0.0014]
[1773561203145,0.041972,71466.0,71456.0,0.0014]
[1773561203940,0.02848284,71468.0,71456.0,0.0014]
[1773561204943,0.041972,71466.0,71456.0,0.0014]
[1773561205144,0.041972,71466.0,71456.0,0.0124]
[1773561213953,0.041971,71467.0,71456.0,0.0124]
[1773561223460,0.011,71477.0,71458.0,0.02841229]
[1773561223760,0.011,71477.0,71465.0,0.07038429]
[1773561223957,0.011,71477.0,71467.0,0.11655813]
[1773561224159,0.011,71477.0,71468.0,0.02841229]
[1773561224752,0.012,71477.0,71466.0,0.0014]
[1773561225453,0.042965,71477.0,71466.0,0.0014]
[1773561226861,0.042965,71477.0,71466.0,0.0124]
[1773561228351,0.001,71477.0,71466.0,0.0124]
[1773561229258,0.001,71477.0,71466.0,0.054371]
[1773561230055,0.001,71477.0,71468.0,0.07038229]
[1773561231060,0.001,71477.0,71471.0,0.02769017]
[1773561231761,0.041962,71482.0,71471.0,0.02769017]
[1773561231960,0.001,71477.0,71471.0,0.02769017]
[1773561232261,0.041962,71482.0,71471.0,0.02769017]
[1773561232960,0.041962,71482.0,71472.0,0.0014]
[1773561233864,0.041961,71484.0,71472.0,0.0014]
[1773561234064,0.041962,71483.0,71472.0,0.02866233]
[1773561234257,0.041962,71482.0,71472.0,0.02866233]
[1773561234664,0.042962,71482.0,71472.0,0.02866233]
[1773561234957,0.001,71482.0,71473.0,0.041967]
[1773561235151,0.001,71483.0,71473.0,0.06922933]
[1773561235357,0.001,71483.0,71474.0,0.02726233]
[1773561236355,0.001,71483.0,71474.0,0.06922833]
[1773561236758,0.001,71482.0,71474.0,0.06922833]
[1773561237358,0.001,71482.0,71474.0,0.041966]
[1773561237564,0.01099,71493.0,71475.0,0.02726233]
[1773561237759,0.01099,71493.0,71476.0,0.02726233]
[1773561237956,0.041959,71487.0,71476.0,0.02726233]
[1773561238654,0.04196,71486.0,71476.0,0.02026233]
[1773561239361,0.041961,71485.0,71476.0,0.02026233]
[1773561239667,0.01099,71493.0,71476.0,0.02026233]
[1773561239868,0.041962,71483.0,71474.0,0.011]
[1773561242268,0.041962,71483.0,71474.0,0.03826233]
[1773561245169,0.08814584,71490.0,71475.0,0.0014]
[1773561245375,0.01652025,71488.0,71476.0,0.0014]
[1773561245585,0.041964,71479.0,71477.0,0.0014]
[1773561245765,0.041964,71479.0,71478.0,0.0014]
[1773561245968,0.08814584,71490.0,71462.0,0.06923633]
[1773561246277,0.01348026,71487.0,71463.0,0.0014]
[1773561246682,0.01348026,71487.0,71470.0,0.0014]
[1773561246883,0.01348026,71487.0,71471.0,0.0014]
[1773561247182,0.041966,71476.0,71471.0,0.0014]
[1773561250374,0.041966,71476.0,71472.0,0.0014]
[1773561250778,0.041966,71476.0,71463.0,0.041973]
[1773561251086,0.041966,71476.0,71464.0,0.0014]
[1773561251272,0.052966,71476.0,71464.0,0.0014]
[1773561251484,0.052966,71476.0,71470.0,0.0014]
[1773561251684,0.052966,71476.0,71471.0,0.0014]
[1773561252091,0.041967,71474.0,71472.0,0.0014]
[1773561252290,0.041967,71474.0,71473.0,0.0014]
[1773561252985,0.041967,71474.0,71463.0,0.25167286]
[1773561253185,0.041967,71474.0,71464.0,0.0014]
[1773561253586,0.041967,71474.0,71470.0,0.0014]
[1773561253786,0.041967,71474.0,71471.0,0.0014]
[1773561253988,0.041967,71474.0,71472.0,0.0014]
[1773561254187,0.041967,71474.0,71473.0,0.0014]
[1773561257193,0.041967,71474.0,71462.0,0.02726233]
[1773561257495,0.041967,71474.0,71463.0,0.0014]
[1773561257696,0.052966,71476.0,71464.0,0.06923433]
[1773561259800,0.011,71476.0,71461.0,0.31473709]
[1773561260102,0.011,71476.0,71453.0,0.42002]
[1773561260103,0.041969,71469.0,71459.0,0.32573709]
[1773561260299,0.01599541,71474.0,71459.0,0.011]
[1773561260600,0.041971,71468.0,71460.0,0.0014]
[1773561260991,0.041971,71468.0,71456.0,0.31473709]
[1773561261193,0.041971,71468.0,71457.0,0.0014]
[1773561261390,0.041971,71468.0,71456.0,0.31473709]
[1773561261391,0.041971,71468.0,71458.0,0.0014]
[1773561261596,0.041971,71467.0,71455.0,0.31473709]
[1773561261797,0.041971,71467.0,71456.0,0.0014]
[1773561262008,0.041971,71467.0,71463.0,6.6e-07]
[1773561262300,0.05297,71469.0,71464.0,0.0014]
[1773561262495,0.05297,71469.0,71465.0,0.0014]
[1773561262696,0.05297,71469.0,71466.0,0.0014]
[1773561262901,0.05297,71469.0,71467.0,0.0014]
[1773561263199,0.05297,71469.0,71468.0,0.0014]
[1773561266993,0.05297,71469.0,71459.0,0.08814584]
[1773561267198,0.04197,71468.0,71464.0,0.0014]
[1773561267397,0.04197,71468.0,71460.0,0.0014]
[1773561269504,0.04197,71468.0,71454.0,0.00719062]
[1773561269695,0.041971,71466.0,71455.0,0.0014]
[1773561270699,0.041971,71466.0,71454.0,0.00719062]
[1773561270894,0.041971,71466.0,71455.0,0.0014]
[1773561271294,0.041971,71466.0,71456.0,0.0014]
[1773561271702,0.041971,71466.0,71451.0,0.04198]
[1773561271894,0.041971,71466.0,71452.0,0.0014]
[1773561272296,0.041971,71466.0,71453.0,0.0014]
[1773561272808,0.041971,71466.0,71454.0,0.0014]
[1773561273200,0.041971,71466.0,71451.0,0.06877062]
[1773561273400,0.041971,71466.0,71452.0,0.0014]
[1773561273700,0.041971,71466.0,71451.0,0.06877062]
[1773561273901,0.041971,71466.0,71452.0,0.0014]
[1773561274203,0.041971,71466.0,71451.0,0.06877062]
[1773561274503,0.041971,71466.0,71452.0,0.0014]
[1773561274703,0.041971,71466.0,71451.0,0.06877062]
[1773561275005,0.041971,71466.0,71452.0,0.0014]
[1773561275304,0.041971,71466.0,71453.0,0.0014]
[1773561275705,0.041971,71466.0,71451.0,0.06877062]
[1773561275908,0.041971,71466.0,71452.0,0.02819062]
[1773561276205,0.041971,71466.0,71452.0,0.02679062]
[1773561276397,0.041971,71466.0,71453.0,0.0014]
[1773561276706,0.041971,71466.0,71452.0,0.02679062]
[1773561276909,0.041971,71466.0,71453.0,0.0014]
[1773561277204,0.041971,71466.0,71452.0,0.02679062]
[1773561277404,0.041971,71466.0,71453.0,0.0014]
[1773561277705,0.041971,71466.0,71452.0,0.02679062]
[1773561278004,0.041971,71466.0,71453.0,0.0014]
[1773561278201,0.011,71469.0,71454.0,0.0014]
[1773561278410,0.03679541,71469.0,71454.0,0.0014]
[1773561278602,0.03679541,71469.0,71455.0,0.0014]
[1773561279003,0.041973,71463.0,71455.0,0.0014]
[1773561283409,0.041976,71458.0,71456.0,0.0014]
[1773561283616,0.041977,71457.0,71450.0,0.0881391]
[1773561283809,0.041977,71457.0,71451.0,0.0014]
[1773561286121,0.041977,71457.0,71452.0,0.0014]
[1773561286418,0.052977,71457.0,71453.0,0.0014]
[1773561286620,0.052977,71457.0,71454.0,0.0014]
[1773561286821,0.052977,71457.0,71455.0,0.0014]
[1773561287015,0.052977,71457.0,71456.0,0.0014]
[1773561288412,0.041977,71456.0,71450.0,0.0881391]
[1773561288616,0.041977,71456.0,71451.0,0.0014]
[1773561289525,0.041973,71463.0,71451.0,0.02819062]
[1773561289724,0.041973,71463.0,71451.0,0.25302778]
[1773561289926,0.041973,71463.0,71452.0,0.02679062]
[1773561290321,0.02579541,71475.0,71453.0,0.02709963]
[1773561290528,0.02579541,71475.0,71460.0,0.0881391]
[1773561290828,0.02579541,71475.0,71461.0,0.0014]
[1773561291726,0.02579541,71475.0,71462.0,0.0014]
[1773561291928,0.041972,71465.0,71463.0,0.0014]
[1773561292126,0.041972,71465.0,71464.0,0.0014]
[1773561295120,0.041972,71465.0,71456.0,0.02709963]
[1773561295320,0.041972,71465.0,71457.0,0.0014]
[1773561295726,0.041973,71464.0,71457.0,0.0014]
[1773561296227,0.041973,71464.0,71459.0,0.011]
[1773561297632,0.011,71462.0,71459.0,0.011]
[1773561301035,0.041973,71463.0,71457.0,0.0014]
[1773561301835,0.0014,71483.0,71453.0,0.25162778]
[1773561301836,0.041974,71462.0,71453.0,0.25162778]
[1773561302035,0.041974,71462.0,71458.0,0.0014]
[1773561302237,0.041974,71462.0,71459.0,0.0014]
[1773561302428,0.041974,71462.0,71460.0,0.0014]
[1773561302735,0.041974,71462.0,71461.0,0.0014]
[1773561303331,0.041974,71462.0,71452.0,0.25162778]
[1773561303332,0.052974,71462.0,71452.0,0.25162778]
[1773561303629,0.052974,71462.0,71453.0,0.0014]
[1773561304933,0.052974,71462.0,71452.0,0.25162778]
[1773561305135,0.052974,71462.0,71453.0,0.0014]
[1773561305436,0.052974,71462.0,71454.0,0.0014]
[1773561305637,0.052974,71462.0,71451.0,0.25162778]
[1773561305937,0.052974,71462.0,71452.0,0.0014]
[1773561308339,0.041974,71461.0,71452.0,0.0014]
[1773561310539,0.041975,71459.0,71452.0,0.0014]
[1773561313143,0.041975,71459.0,71453.0,0.0014]
[1773561313338,0.041975,71459.0,71450.0,0.0881391]
[1773561313339,0.011,71462.0,71447.0,0.3117808]
[1773561313643,0.011,71462.0,71449.0,0.0881391]
[1773561314038,0.011,71462.0,71450.0,0.0014]
[1773561314344,0.011,71462.0,71451.0,0.0014]
[1773561314535,0.011,71462.0,71452.0,0.0014]
[1773561314736,0.041979,71453.0,71446.0,0.011]
[1773561314943,0.041979,71453.0,71447.0,0.0014]
[1773561316144,0.041979,71453.0,71448.0,0.0014]
[1773561317346,0.041979,71453.0,71449.0,0.0014]
[1773561318146,0.052979,71453.0,71449.0,0.0014]
[1773561319242,0.052979,71453.0,71443.0,0.02756035]
[1773561319542,0.052979,71453.0,71444.0,0.0014]
[1773561321156,0.052979,71453.0,71445.0,0.0014]
[1773561321445,0.052979,71453.0,71446.0,0.0014]
[1773561323049,0.052979,71453.0,71443.0,0.02756035]
[1773561323248,0.052979,71453.0,71444.0,0.0014]
[1773561327551,0.052979,71453.0,71441.0,0.041986]
[1773561327753,0.052979,71453.0,71442.0,0.0014]
[1773561328851,0.011,71453.0,71442.0,0.0014]
[1773561329044,0.02993483,71452.0,71443.0,0.0014]
[1773561329241,0.02993483,71452.0,71440.0,0.08816113]
[1773561329446,0.02993483,71452.0,71441.0,0.0014]
[1773561329646,0.011,71453.0,71441.0,0.0014]
[1773561330048,0.041981,71450.0,71441.0,0.0014]
[1773561330552,0.011,71453.0,71441.0,0.03272721]
[1773561330757,0.041976,71458.0,71446.0,0.07331021]
[1773561330940,0.041976,71458.0,71450.0,0.08816113]
[1773561331144,0.041976,71458.0,71451.0,0.0014]
[1773561333058,0.041977,71457.0,71451.0,0.0014]
[1773561334253,0.041977,71457.0,71453.0,0.011]
[1773561335160,0.011,71455.0,71453.0,0.011]
[1773561342660,0.041976,71458.0,71453.0,0.011]
[1773561342863,0.041976,71458.0,71451.0,0.0014]
[1773561345365,0.041976,71458.0,71451.0,0.0124]
[1773561346363,0.041976,71458.0,71452.0,0.0014]
[1773561348365,0.041976,71458.0,71454.0,0.011]
[1773561348865,0.011,71456.0,71454.0,0.011]
[1773561349562,0.041974,71462.0,71452.0,0.0014]
[1773561349751,0.02993483,71466.0,71452.0,0.0014]
[1773561349956,0.041974,71462.0,71452.0,0.0014]
[1773561350660,0.041972,71466.0,71453.0,0.041979]
[1773561350861,0.03779064,71468.0,71458.0,0.08816113]
[1773561351063,0.03779064,71468.0,71459.0,0.0014]
[1773561352468,0.03779064,71468.0,71459.0,0.0124]
[1773561354066,0.07976064,71468.0,71459.0,0.0124]
[1773561355970,0.03779064,71468.0,71459.0,0.0124]
[1773561359866,0.03779064,71468.0,71459.0,0.054375]
[1773561360070,0.03779064,71468.0,71459.0,0.0124]
[1773561361175,0.041969,71471.0,71459.0,0.0124]
[1773561361475,0.041969,71470.0,71459.0,0.0124]
[1773561362065,0.041969,71470.0,71460.0,0.0014]
[1773561364970,0.03102847,71477.0,71460.0,0.0014]
[1773561365373,0.03102847,71477.0,71459.0,0.011]
[1773561365574,0.03102847,71477.0,71460.0,0.0014]
[1773561366073,0.041967,71474.0,71460.0,0.043375]
[1773561367872,0.041967,71473.0,71460.0,0.043375]
[1773561368673,0.011,71478.0,71460.0,0.03069199]
[1773561368872,0.011,71478.0,71468.0,0.08816113]
[1773561369074,0.041964,71479.0,71469.0,0.0014]
[1773561369978,0.03102847,71487.0,71469.0,0.0014]
[1773561370166,0.19357348,71486.0,71469.0,0.0014]
[1773561370374,0.03102847,71487.0,71469.0,0.0014]
[1773561370674,0.041964,71479.0,71469.0,0.0014]
[1773561371178,0.041965,71478.0,71469.0,0.0014]
[1773561374981,0.041965,71477.0,71469.0,0.0014]
[1773561395002,0.041966,71476.0,71469.0,0.0014]
[1773561410515,0.041964,71478.0,71469.0,0.0014]
[1773561410711,0.041965,71477.0,71469.0,0.0014]
[1773561411015,0.041966,71476.0,71469.0,0.0014]
[1773561417732,0.02857791,71480.0,71469.0,0.0014]
[1773561417922,0.041966,71476.0,71469.0,0.0014]
[1773561430238,0.041964,71478.0,71469.0,0.0014]
[1773561432135,0.041966,71475.0,71469.0,0.0014]
[1773561434937,0.041965,71477.0,71469.0,0.0014]
[1773561436838,0.01099,71488.0,71469.0,0.0014]
[1773561436839,0.01099,71488.0,71472.0,0.041968]
[1773561437030,0.01099,71488.0,71478.0,0.08809845]
[1773561437228,0.01099,71488.0,71479.0,0.0014]
[1773561437429,0.01099,71488.0,71480.0,0.0014]
[1773561437739,0.04196,71486.0,71481.0,0.0014]
[1773561437939,0.04196,71486.0,71482.0,0.0014]
[1773561438132,0.04196,71486.0,71483.0,0.0014]
[1773561438347,0.04196,71486.0,71471.0,0.0278887]
[1773561438644,0.04196,71485.0,71473.0,0.041967]
[1773561439034,0.04196,71485.0,71478.0,0.0028]
[1773561439231,0.04196,71485.0,71479.0,0.0014]
[1773561439834,0.041961,71484.0,71479.0,0.0014]
[1773561444543,0.041961,71484.0,71478.0,0.01099]
[1773561444737,0.041961,71484.0,71479.0,0.0042]
[1773561445045,0.041961,71484.0,71480.0,0.0014]
[1773561445242,0.041961,71484.0,71481.0,0.0014]
[1773561445447,0.041961,71484.0,71482.0,0.0014]
[1773561445644,0.041961,71484.0,71478.0,0.01099]
[1773561445948,0.041961,71484.0,71479.0,0.0014]
[1773561446342,0.041962,71483.0,71479.0,0.0014]
[1773561450347,0.00718617,71521.0,71480.0,0.02741444]
[1773561450550,0.041955,71494.0,71481.0,0.0014]
[1773561450759,0.02560306,71493.0,71472.0,0.31473321]
[1773561451048,0.02560306,71492.0,71475.0,0.25150457]
[1773561451248,0.06756206,71487.0,71475.0,0.25150457]
[1773561452053,0.06756206,71487.0,71476.0,0.0014]
[1773561452457,0.06756206,71487.0,71477.0,0.0014]
[1773561452654,0.05295284,71486.0,71477.0,0.0014]
[1773561454058,0.05295284,71486.0,71477.0,0.01239]
[1773561454751,0.05295284,71486.0,71477.0,0.01099]
[1773561454958,0.05295284,71486.0,71478.0,0.0014]
[1773561455960,0.041961,71485.0,71478.0,0.0014]
[1773561456959,0.041961,71485.0,71479.0,0.0014]
[1773561457152,0.052951,71485.0,71479.0,0.0014]
[1773561457855,0.00052963,71497.0,71485.0,0.04196]
[1773561458056,0.02560306,71510.0,71487.0,0.08808559]
[1773561458365,0.041952,71499.0,71488.0,0.0014]
[1773561458658,0.041953,71498.0,71488.0,0.0014]
[1773561458855,0.02560306,71511.0,71487.0,0.08808559]
[1773561459060,0.02560306,71511.0,71474.0,0.12635849]
[1773561459061,0.041958,71490.0,71488.0,0.0014]
[1773561459250,0.06756106,71490.0,71489.0,0.0014]
[1773561459451,0.041958,71490.0,71489.0,0.0014]
[1773561460159,0.02560306,71494.0,71489.0,0.0014]
[1773561460354,0.041957,71491.0,71490.0,0.0014]
[1773561460547,0.041957,71491.0,71480.0,0.08808559]
[1773561460851,0.041957,71491.0,71484.0,0.0028]
[1773561461247,0.041957,71491.0,71481.0,0.0014]
[1773561461562,0.02560306,71494.0,71481.0,0.0014]
[1773561463056,0.041957,71490.0,71481.0,0.0014]
[1773561463257,0.02560306,71494.0,71481.0,0.0014]
[1773561464962,0.041957,71491.0,71481.0,0.0014]
[1773561465465,0.041957,71491.0,71481.0,0.01239]
[1773561466065,0.041957,71491.0,71484.0,0.0028]
[1773561469262,0.02560306,71494.0,71484.0,0.0028]
[1773561469263,0.041958,71490.0,71484.0,0.0028]
[1773561469463,0.041958,71490.0,71485.0,0.0014]
[1773561471670,0.02560306,71494.0,71485.0,0.0014]
[1773561472071,0.041958,71490.0,71485.0,0.0014]
[1773561472371,0.02846423,71502.0,71485.0,0.0014]
[1773561472865,0.041957,71490.0,71485.0,0.0014]
[1773561473065,0.02846423,71498.0,71485.0,0.0014]
[1773561474171,0.041956,71493.0,71485.0,0.0042]
[1773561474367,0.02946423,71498.0,71485.0,0.0042]
[1773561474672,0.02946423,71498.0,71486.0,0.0014]
[1773561474871,0.02946423,71498.0,71487.0,0.0014]
[1773561475171,0.041958,71489.0,71488.0,0.0014]
[1773561475470,0.041958,71489.0,71481.0,0.00099]
[1773561475872,0.041958,71489.0,71482.0,0.0014]
[1773561476480,0.041958,71489.0,71483.0,0.0014]
[1773561479480,0.021958,71489.0,71483.0,0.0014]
[1773561480381,0.021958,71489.0,71482.0,0.0014]
[1773561480983,0.021958,71489.0,71483.0,0.0028]
[1773561481883,0.02846423,71495.0,71483.0,0.0028]
[1773561482069,0.041958,71489.0,71483.0,0.0028]
[1773561482484,0.041958,71489.0,71483.0,0.01379]
[1773561482787,0.041958,71489.0,71484.0,0.0014]
[1773561483480,0.021958,71489.0,71484.0,0.0014]
[1773561484183,0.021958,71489.0,71485.0,0.0014]
[1773561484780,0.02846423,71495.0,71485.0,0.0014]
[1773561484974,0.041958,71489.0,71485.0,0.0014]
[1773561485577,0.041958,71489.0,71486.0,0.0014]
[1773561485777,0.041959,71488.0,71481.0,0.19048457]
[1773561485984,0.041959,71488.0,71482.0,0.0014]
[1773561486283,0.00846423,71504.0,71482.0,0.0014]
[1773561486584,0.041958,71489.0,71482.0,0.0014]
[1773561486785,0.00846423,71504.0,71482.0,0.0014]
[1773561487081,0.00846423,71504.0,71483.0,0.0014]
[1773561487585,0.041957,71490.0,71483.0,0.0014]
[1773561487787,0.02846423,71502.0,71483.0,0.0014]
[1773561487988,0.041957,71490.0,71483.0,0.0014]
[1773561488178,0.02846423,71502.0,71483.0,0.0014]
[1773561488377,0.02846423,71502.0,71481.0,0.0118813]
[1773561488578,0.041957,71491.0,71484.0,0.0014]
[1773561489887,0.02846423,71503.0,71484.0,0.0014]
[1773561490089,0.00846423,71506.0,71484.0,0.0014]
[1773561490386,0.01099,71507.0,71484.0,0.0014]
[1773561490588,0.02846423,71506.0,71484.0,0.0014]
[1773561490792,0.041957,71491.0,71484.0,0.0014]
[1773561493691,0.02846423,71503.0,71484.0,0.0014]
[1773561494895,0.041957,71491.0,71484.0,0.0014]
[1773561496094,0.041958,71490.0,71484.0,0.0014]
[1773561496294,0.02846423,71503.0,71484.0,0.0014]
[1773561496483,0.02846423,71506.0,71484.0,0.0014]
[1773561497895,0.02846423,71502.0,71485.0,0.0014]
[1773561498195,0.02846423,71502.0,71486.0,0.0014]
[1773561498395,0.02846423,71502.0,71487.0,0.0014]
[1773561498596,0.02846423,71505.0,71488.0,0.0014]
[1773561498788,0.02846423,71505.0,71489.0,0.0014]
[1773561498986,0.041957,71490.0,71480.0,0.06948559]
[1773561499190,0.041957,71490.0,71481.0,0.0014]
[1773561501499,0.041958,71489.0,71481.0,0.0014]
[1773561501802,0.041959,71488.0,71481.0,0.0014]
[1773561502500,0.041957,71490.0,71481.0,0.0014]
[1773561503301,0.041957,71490.0,71483.0,0.01099]
[1773561503993,0.01099,71486.0,71483.0,0.01099]
[1773561504192,0.041957,71490.0,71483.0,0.01099]
[1773561504802,0.041957,71490.0,71481.0,0.0014]
[1773561506802,0.041957,71490.0,71481.0,0.01239]
[1773561510505,0.041959,71487.0,71480.0,5.9e-07]
[1773561510710,0.00390905,71499.0,71481.0,0.0014]
[1773561511015,0.041962,71481.0,71470.0,0.08808559]
[1773561511208,0.041962,71481.0,71471.0,0.0014]
[1773561511806,0.041962,71481.0,71467.0,0.04197]
[1773561512015,0.041966,71475.0,71461.0,0.041974]
[1773561512213,0.041966,71475.0,71462.0,0.0014]
[1773561512407,0.041966,71475.0,71462.0,0.041973]
[1773561512608,0.041966,71475.0,71463.0,0.0014]
[1773561513308,0.041966,71475.0,71468.0,0.011]
[1773561513814,0.011,71470.0,71468.0,0.011]
[1773561514000,0.041966,71475.0,71468.0,0.011]
[1773561514618,0.041966,71475.0,71464.0,0.0014]
[1773561514917,0.041966,71475.0,71462.0,0.041973]
[1773561514918,0.041966,71475.0,71465.0,0.0014]
[1773561517212,0.041966,71475.0,71462.0,0.041973]
[1773561517512,0.041966,71475.0,71465.0,0.011]
[1773561518721,0.041966,71475.0,71466.0,0.0014]
[1773561518922,0.04126594,71475.0,71466.0,0.0014]
[1773561529626,0.04126594,71475.0,71465.0,0.011]
[1773561529825,0.04126594,71475.0,71467.0,0.0014]
[1773561532028,0.041967,71474.0,71467.0,0.0014]
[1773561537345,0.041967,71474.0,71465.0,0.011]
[1773561537635,0.041967,71474.0,71468.0,0.0014]
[1773561538440,0.041967,71474.0,71465.0,0.011]
[1773561538733,0.041967,71474.0,71466.0,0.0014]
[1773561540641,0.041967,71474.0,71467.0,0.0014]
[1773561540838,0.00487345,71482.0,71467.0,0.0014]
[1773561541029,0.00472308,71484.0,71468.0,0.0014]
[1773561541339,0.04196,71486.0,71457.0,0.31400052]
[1773561541340,0.04197,71469.0,71457.0,0.40600052]
[1773561541533,0.04197,71469.0,71458.0,0.0014]
[1773561542037,0.04197,71469.0,71463.0,0.0028]
[1773561542738,0.02197,71469.0,71463.0,0.0028]
[1773561543328,0.02197,71469.0,71457.0,0.0762]
[1773561543531,0.02197,71469.0,71457.0,0.041976]
[1773561543733,0.02197,71469.0,71458.0,0.0014]
[1773561544238,0.011,71476.0,71458.0,0.0014]
[1773561544437,0.041969,71470.0,71458.0,0.0014]
[1773561544834,0.041969,71470.0,71457.0,0.023376]
[1773561545041,0.04197,71469.0,71460.0,0.08809726]
[1773561545429,0.04197,71469.0,71463.0,0.011]
[1773561546238,0.011,71465.0,71463.0,0.011]
[1773561546835,0.011,71465.0,71464.0,0.0014]
[1773561547539,0.03297,71469.0,71464.0,0.0014]
[1773561548231,0.03297,71469.0,71465.0,0.0014]
[1773561549236,0.03297,71469.0,71464.0,0.011]
[1773561549443,0.00472308,71477.0,71465.0,0.0014]
[1773561550044,0.00472308,71477.0,71466.0,0.0014]
[1773561550447,0.00472308,71477.0,71467.0,0.0014]
[1773561550648,0.00472308,71477.0,71459.0,0.06189726]
[1773561550649,0.00472308,71477.0,71468.0,0.0014]
[1773561550842,0.00472308,71477.0,71459.0,0.06189726]
[1773561550843,0.00472308,71477.0,71469.0,0.0014]
[1773561551043,0.00472308,71477.0,71470.0,0.0014]
[1773561551350,0.041969,71470.0,71459.0,0.06189726]
[1773561551536,0.041969,71470.0,71460.0,0.0014]
[1773561551733,0.041969,71470.0,71463.0,0.011]
[1773561551947,0.041969,71470.0,71463.0,0.0124]
[1773561552450,0.011,71466.0,71463.0,0.0124]
[1773561552650,0.032969,71470.0,71463.0,0.0124]
[1773561553153,0.032969,71470.0,71463.0,0.0014]
[1773561553449,0.032969,71470.0,71464.0,0.0014]
[1773561554150,0.01021053,71478.0,71464.0,0.0014]
[1773561554848,0.01021053,71478.0,71465.0,0.0014]
[1773561555050,0.0155686,71485.0,71465.0,0.0014]
[1773561555239,0.01099,71486.0,71470.0,0.08809726]
[1773561555436,0.01099,71486.0,71476.0,0.08809726]
[1773561555649,0.041961,71484.0,71477.0,0.0014]
[1773561555853,0.041962,71483.0,71477.0,0.0014]
[1773561557753,0.041962,71482.0,71477.0,0.0014]
[1773561558449,0.041961,71484.0,71477.0,0.0014]
[1773561558645,0.041962,71483.0,71477.0,0.0014]
[1773561559447,0.041962,71482.0,71477.0,0.0014]
[1773561560255,0.041962,71482.0,71477.0,0.01239]
[1773561563250,0.040562,71482.0,71477.0,0.01239]
[1773561565647,0.041963,71481.0,71477.0,0.01239]